Cogmind - Beta 16.1 @@@ ROGUE MODE // 2026.02.17 @ 03:34:58 Player: ZeroJewelz Result: Destroyed by H-61 Shepherd with Heavy Assault Cannon Performance ------------- Evolutions (2) 1000 Regions Visited (4) 800 Robots Destroyed (63) 315 Value Destroyed (1745) 1745 Prototype IDs (3) 60 Alien Tech Used (0) 0 Bonus (19) 19 TOTAL SCORE: 3939 Bonus ------- High Alert Combat Kills 19 Cogmind --------- Core Integrity 0/550 Matter 128/300 Energy 275/275 System Corruption 2% Temperature Cool (0) Movement Core (350) Ox6 Location -8/Materials Parts ------- > --- POWER (1) -------- Deuterium Engine > --- PROPULSION (3) --- (None) > --- UTILITY (5) ------ Medium Storage Unit Improved Targeting Computer > --- WEAPON (2) ------- (None) > --- INVENTORY (10) --- Improved Ion Engine Peak State ------------ > --- POWER ------------ Improved Ion Engine > --- PROPULSION ------- Light Treads Light Treads Advanced Treads > --- UTILITY ---------- Structural Scanner Improved Targeting Computer Recoil Stabilizer Improved Light Armor Plating Improved Light Armor Plating > --- WEAPON ----------- Light Cannon Flak Cannon > --- INVENTORY -------- Deuterium Engine Medium Storage Unit Small Laser [Rating: 23] Favorites ----------- Power Improved Ion Engine Engine Improved Ion Engine Power Core Light Nuclear Core Propulsion Light Treads Treads Light Treads Leg VSS Leg Flight Unit Improved VTOL Module Utility Power Shielding Device Structural Scanner Storage Medium Storage Unit Processor Improved Targeting Computer Protection Power Shielding Weapon Grenade Launcher Energy Gun Heavy EM Pulse Gun Ballistic Gun Shotgun Ballistic Cannon Light Cannon Launcher Grenade Launcher Build | -11 -10 -9 -9 -8 ------- Run | Yrd Mat Mat Min Mat Slots Evolved 4 | . . 2 . 2 Power . | . . . . . Propulsion 1 | . . . . 1 Utility 3 | . . 2 . 1 Weapon . | . . . . . Parts Attached 53 | 6 11 26 . 10 Power 13 | 2 3 5 . 3 Engine 12 | 2 3 4 . 3 Core 1 | . . 1 . . Reactor . | . . . . . Propulsion 11 | 2 . 7 . 2 Treads 7 | 2 . 3 . 2 Leg 3 | . . 3 . . Wheel . | . . . . . Hover . | . . . . . Flight 1 | . . 1 . . Utility 13 | 1 3 7 . 2 Device 4 | . 1 1 . 2 Storage 3 | 1 . 2 . . Processor 1 | . . 1 . . Hackware . | . . . . . Protection 5 | . 2 3 . . Artifact . | . . . . . Weapon 16 | 1 5 7 . 3 Energy Gun 5 | . 2 2 . 1 Energy Cannon . | . . . . . Ballistic Gun 7 | 1 1 4 . 1 Ballistic Cannon 2 | . . 1 . 1 Launcher 2 | . 2 . . . Special Weapon . | . . . . . Impact Weapon . | . . . . . Slashing Weapon . | . . . . . Piercing Weapon . | . . . . . Special Melee Weapon . | . . . . . Unidentified Prototypes 1 | . . 1 . . Parts Lost 32 | . 1 17 . 14 Power 4 | . 1 2 . 1 Propulsion 9 | . . 5 . 4 Utility 7 | . . 2 . 5 Weapon 12 | . . 8 . 4 Highest Loss Streak 13 | . 1 8 . 13 To Critical Strikes 1 | . . 1 . . Average Backups 3 | . 4 4 6 3 Power . | . . . 2 1 Propulsion . | . . . 1 . Utility 1 | . 2 2 3 1 Weapon 1 | . 1 . . . Tool/Special . | . . . . . Unused Backups 4 | . 1 . . 3 Power 1 | . . . . 1 Propulsion 1 | . . . . 1 Utility 1 | . . . . 1 Weapon 1 | . 1 . . . Tool/Special . | . . . . . Average Slot Usage (%) 88 | . 94 83 100 87 Engine 9 | . 13 7 11 8 Core 1 | . . 3 . . Treads 18 | . 28 9 22 22 Leg 3 | . . 6 . . Device 10 | . 10 10 11 11 Storage 6 | . 3 8 11 4 Processor 3 | . . 3 11 9 Protection 13 | . 10 14 11 14 Energy Gun 6 | . 8 6 11 4 Ballistic Gun 5 | . 3 9 . . Ballistic Cannon 2 | . . . 11 11 Launcher 5 | . 14 2 . . Peak Build Rating 23 | 5 10 20 11 23 Average Rating 11 | 4 8 12 11 17 On Entrance 7 | . 5 8 11 11 Avg Prop Armor Cover (%) . | . . . . . Naked Turns . | . . . . . Heaviest Build 32 | 12 21 32 21 26 Greatest Support 62 | 40 40 40 40 62 Greatest Overweight (x) 7 | . . 7 . 3 Average Overweight (x) . | . . . . . Largest Inventory Capacity 25 | 8 8 25 10 10 Average Capacity 7 | 7 5 8 10 7 Most Carried 9 | 3 6 9 6 6 Average Carried 3 | . 4 4 6 3 Final Capacity 10 | 8 5 10 10 10 Final Carried 6 | . 5 6 6 1 Class Distribution -------------------- 85% | Mutant 14% | Scavenger-Mutant Dominant Class ---------------- Mutant | -10/Materials Mutant | -9/Materials Scavenger-Mutant | -9/Mines Mutant | -8/Materials Resources | -11 -10 -9 -9 -8 ----------- Run | Yrd Mat Mat Min Mat Matter Collected 1396 | 188 332 822 . 54 Remotely . | . . . . . Salvage Created 1681 | . 398 1133 . 150 Parts 123 | . 31 77 . 15 Haulers Intercepted . | . . . . . Recyclers Shooed 1 | . 1 . . . Parts Field Recycled . | . . . . . Retrieved Matter . | . . . . . Parts Self-Destructed . | . . . . . Prevented . | . . . . . Parts Restored . | . . . . . Kills | -11 -10 -9 -9 -8 ------- Run | Yrd Mat Mat Min Mat Combat Hostiles Destroyed 52 | . 16 31 . 5 Guns 34 | . 7 26 . 1 Cannons 7 | . . 3 . 4 AOE 10 | . 9 1 . . Classes Destroyed 10 | . 6 3 . 1 Worker 3 | . 2 1 . . Builder 2 | . 1 . . 1 Recycler 1 | . 1 . . . Operator 1 | . . 1 . . Watcher 4 | . 3 1 . . Swarmer 15 | . 9 6 . . Grunt 24 | . 7 16 . 1 Duelist 1 | . . 1 . . Sentry 10 | . . 8 . 2 Specialist 2 | . . . . 2 Best Kill Streak 12 | . 6 12 . 5 Combat Bots Only 12 | . 6 12 . 4 Max Kills in Single Turn 2 | . 2 2 . 2 Gunslinging . | . . . . . Exploded 2 | . 2 1 . . Melee . | . . . . . Uniques/NPCs Destroyed . | . . . . . Combat | -11 -10 -9 -9 -8 -------- Run | Yrd Mat Mat Min Mat Hostile Shots Fired 482 | . 85 242 . 155 Missed 130 | . 22 66 . 42 Hits 352 | . 63 176 . 113 Melee 2 | . . 2 . . Projectile 350 | . 63 174 . 113 Critical Strikes 9 | . . 6 . 3 Actively Blocked 1 | . . 1 . . Damage Taken 4661 | . 632 2093 . 1936 Core 1111 | . 147 383 . 581 Absorbed by Shields . | . . . . . Redirected to Shielding 99 | . 12 80 . 7 Core Remaining (%) 48 | 100 41 . 4 . Volleys Fired 161 | . 52 85 . 24 Largest 2 | . 2 2 . 2 Hottest 90 | . 90 90 . 70 Shots Fired 246 | . 59 149 . 38 Gun 177 | . 39 129 . 9 Cannon 42 | . . 13 . 29 Launcher 27 | . 20 7 . . Special . | . . . . . Kinetic 150 | . 16 100 . 34 Thermal 12 | . . 8 . 4 Explosive 27 | . 20 7 . . Electromagnetic 57 | . 23 34 . . Robot Hit Streak 12 | . 5 9 . 12 Robot Miss Streak 8 | . 3 8 . 4 Penetration Max . | . . . . . Secondary Targets 2 | . . 2 . . Max Gunslinging Chain 1 | . . 1 . . Shots Hit Robots 163 | . 29 103 . 31 Core Hits 111 | . 29 56 . 26 Critical Kills 2 | . . 2 . . Critical Parts Destroyed . | . . . . . Critical Strikes 3 | . . 3 . . Destroy 2 | . . 2 . . Corrupt 1 | . . 1 . . Melee Attacks . | . . . . . Impact . | . . . . . Slashing . | . . . . . Piercing . | . . . . . Sneak Attacks . | . . . . . Combat Hostiles . | . . . . . Follow-up Attacks . | . . . . . Damage Inflicted 3846 | . 1448 1758 . 640 Guns 1943 | . 365 1459 . 119 Cannons 623 | . . 126 . 497 Explosions 1236 | . 1078 158 . . Melee . | . . . . . Ramming 44 | . 5 15 . 24 Kinetic 1845 | . 150 1132 . 563 Thermal 275 | . 89 133 . 53 Explosive 1073 | . 989 84 . . Electromagnetic 609 | . 215 394 . . Impact . | . . . . . Slashing . | . . . . . Piercing . | . . . . . Highest Corruption 4 | . 4 . . 2 Average Corruption 3 | . 3 . . 2 Corruption Purged . | . . . . . Corruption Blocked . | . . . . . Effects 6 | . 5 . . 1 Message Errors 1 | . 1 . . . Matter Fused 1 | . 1 . . . Heat Flow Errors 1 | . 1 . . . Energy Discharges 1 | . 1 . . . Parts Rejected 1 | . . . . 1 Data Loss (minor) 1 | . 1 . . . Overload Shots . | . . . . . Overflow Damage 66 | . 66 . . . Projectiles . | . . . . . Explosions 66 | . 66 . . . Melee . | . . . . . Knockbacks 9 | . . 1 . 8 Impact . | . . . . . Kinetic 8 | . . 1 . 7 Secondary 1 | . . . . 1 Self-Inflicted Damage 102 | . 63 39 . . Shots 5 | . 4 1 . . Rammed 13 | . 3 2 . 8 Targets Rammed 14 | . 3 3 . 8 Kicked 1 | . . 1 . . Crushed . | . . . . . Highest Temperature 251 | . 115 251 . 48 Average Temperature 56 | . 68 69 . 15 Received Heat Transfer 1053 | . 123 759 . 171 Siege Activations . | . . . . . Martial Activations . | . . . . . Shielding Activations . | . . . . . Robots Disrupted . | . . . . . Combat Hostiles . | . . . . . Robots Corrupted 1 | . . 1 . . Combat Hostiles 1 | . . 1 . . Parts Fried 1 | . . 1 . . Impact Corruptions . | . . . . . Robots Melted . | . . . . . Combat Hostiles . | . . . . . Parts Melted . | . . . . . Heat Transferred 484 | . 150 198 . 136 Parts Sabotaged . | . . . . . Parts Stolen . | . . . . . Parts Stripped . | . . . . . Power Chain Reactions 3 | . 1 2 . . Alert | -11 -10 -9 -9 -8 ------- Run | Yrd Mat Mat Min Mat Maximum Alert Level 2 | . 1 2 . . Low Security (%) 91 | 100 97 82 100 100 Level 1 7 | . 2 13 . . Level 2 1 | . . 3 . . Level 3 . | . . . . . Level 4 . | . . . . . Level 5 . | . . . . . High Security . | . . . . . Max Security . | . . . . . Peak Influence 412 | . 242 412 157 75 Initial 157 | . . 98 157 57 Average 86 | . 82 120 152 17 Influence Increases 1600 | . 560 893 . 147 Destroy 0b10 Robot/C 1040 | . 320 620 . 100 Destroy 0b10 Robot/NC 55 | . 35 15 . 5 Destroy Leader 238 | . 66 142 . 30 Successful Hack 28 | . 4 12 . 12 Disable Machine 45 | . 15 30 . . Destroy Structure 149 | . 105 44 . . Partial Spotted 15 | . . 15 . . Lose Combat Pursuer 30 | . 15 15 . . Influence Decreases 1590 | . 326 722 258 284 Entered New Map 474 | . . 136 248 90 Time Decay 832 | . 316 416 10 90 Lost Part 284 | . 10 170 . 104 Squads Dispatched 10 | . 2 6 . 2 Investigation 5 | . 2 3 . . Extermination . | . . . . . Reinforcement 5 | . . 3 . 2 Assault . | . . . . . Garrison . | . . . . . Intercept . | . . . . . Searches Triggered . | . . . . . Construction Impeded . | . . . . . Haulers Reinforced . | . . . . . Active Scanning Responses . | . . . . . Cargo Convoy Interrupts . | . . . . . Stealth | -11 -10 -9 -9 -8 --------- Run | Yrd Mat Mat Min Mat Distress Signals 6 | . . 5 . 1 Communications Jammed . | . . . . . Distress Signals . | . . . . . Times Spotted 76 | . 22 43 . 11 Peak Tracking Total 13 | . 6 13 . 8 Tactical Retreats 2 | . 1 1 . . Traps | -11 -10 -9 -9 -8 ------- Run | Yrd Mat Mat Min Mat Traps Triggered 7 | . 5 1 . 1 Indirectly . | . . . . . Trap Hack Attempts . | . . . . . Triggered . | . . . . . Disarmed . | . . . . . Reprogrammed . | . . . . . Reused . | . . . . . Traps Extracted . | . . . . . Installed . | . . . . . Triggered . | . . . . . Machines | -11 -10 -9 -9 -8 ---------- Run | Yrd Mat Mat Min Mat Machines Disabled 3 | . 1 2 . . Max in Single Turn 1 | . 1 1 . . Machines Repaired . | . . . . . Machines Dismantled . | . . . . . Machines Sabotaged . | . . . . . Overloaded Fab Kills . | . . . . . Hacking | -11 -10 -9 -9 -8 --------- Run | Yrd Mat Mat Min Mat Machines Accessed 4 | . 1 1 . 2 Terminals 2 | . 1 . . 1 Fabricators . | . . . . . Repair Stations . | . . . . . Recycling Units . | . . . . . Scanalyzers 2 | . . 1 . 1 Garrison Access . | . . . . . Total Hacks 14 | . 3 4 . 7 Successful 11 | . 3 1 . 7 Failed 3 | . . 3 . . Catastrophic 1 | . . 1 . . Database Lockouts . | . . . . . Manual . | . . . . . Terminals 6 | . 3 . . 3 Fabricators . | . . . . . Repair Stations . | . . . . . Recycling Units . | . . . . . Scanalyzers 8 | . . 4 . 4 Garrison Access . | . . . . . Terminal Hacks 6 | . 3 . . 3 Record 1 | . 1 . . . Prototype ID Bank 1 | . . . . 1 Alert Level 1 | . . . . 1 Dispatch Records 1 | . 1 . . . Registered Components 2 | . 1 . . 1 Fabricator Hacks . | . . . . . Repair Station Hacks . | . . . . . Recycling Unit Hacks . | . . . . . Scanalyzer 5 | . . 1 . 4 Insert Component 2 | . . 1 . 1 Analyze 1 | . . . . 1 Retrieve Study 2 | . . . . 2 Garrison Access Hacks . | . . . . . Unauthorized Hacks . | . . . . . Terminals . | . . . . . Fabricators . | . . . . . Repair Stations . | . . . . . Recycling Units . | . . . . . Scanalyzers . | . . . . . Garrison Access . | . . . . . Data Cores Recovered . | . . . . . Used . | . . . . . Hacking Detections 3 | . . 1 . 2 Full Trace Events 2 | . . 1 . 1 Feedback Events . | . . . . . Feedback Blocked . | . . . . . Robot Schematics Acquired . | . . . . . Robots Built . | . . . . . Authchips . | . . . . . Time . | . . . . . Total Robot Build Rating . | . . . . . Part Schematics Acquired 1 | . . . . 1 Parts Built . | . . . . . Authchips . | . . . . . Time . | . . . . . Total Part Build Rating . | . . . . . Part Studies Acquired 2 | . . . . 2 Parts Repaired . | . . . . . Time . | . . . . . Parts Recycled . | . . . . . Recycled Matter . | . . . . . Retrieved Matter . | . . . . . Retrieved Components . | . . . . . Parts Scanalyzed 2 | . . 1 . 1 Part Schematics Acquired 1 | . . . . 1 Parts Damaged . | . . . . . Bothacking | -11 -10 -9 -9 -8 ------------ Run | Yrd Mat Mat Min Mat Used RIF Installer . | . . . . . Robots Hacked . | . . . . . Non-combat . | . . . . . Combat . | . . . . . Robot Hacks Applied . | . . . . . Relay Couplers Released . | . . . . . Fabnet Peak Effective % . | . . . . . Robots Rewired . | . . . . . Allies Hacked . | . . . . . Hacks Repelled . | . . . . . Allies | -11 -10 -9 -9 -8 -------- Run | Yrd Mat Mat Min Mat Total Allies . | . . . . . Largest Group . | . . . . . Highest-Rated Group . | . . . . . Highest-Rated Ally . | . . . . . Total Orders . | . . . . . Ally Attacks . | . . . . . Total Damage . | . . . . . Kills . | . . . . . Allies Corrupted . | . . . . . Allies Melted . | . . . . . Intel | -11 -10 -9 -9 -8 ------- Run | Yrd Mat Mat Min Mat Active Infowar (turns) 1159 | . . 801 36 322 Structural 1159 | . . 801 36 322 Robot Analysis Total . | . . . . . Derelict Logs Recovered . | . . . . . Drone Launches . | . . . . . Drone Recoveries . | . . . . . Exploration | -11 -10 -9 -9 -8 ------------- Run | Yrd Mat Mat Min Mat Turns Passed 2255 | 114 735 1009 36 361 Spaces Moved 1054 | 69 360 440 23 162 Core 25 | 13 . 7 . 5 Treads 834 | 56 360 238 23 157 Legs 195 | . . 195 . . Wheels . | . . . . . Hover . | . . . . . Flight . | . . . . . Fastest Speed 50 | 50 160 90 160 50 Average Speed 156 | 139 160 156 160 155 Slowest Speed 400 | 160 160 400 160 200 Overloaded Moves . | . . . . . Propulsion Burnouts . | . . . . . Robots Hopped . | . . . . . Potential Cave-ins . | . . . . . Cave-ins Triggered . | . . . . . Exploration Rate (%) 33 | 3 69 62 12 21 Regions Visited 4 Branch Regions 1 Pre-discovered Areas . | . . . . . Known Exits Taken . | . . . . . Unknown Exits Taken 4 | 1 1 1 1 . Scrap Searched . | . . . . . Spaces Dug 19 | . 19 . . . Terrain Destroyed 200 | . 154 46 . . Melee . | . . . . . Projectile . | . . . . . AOE 200 | . 154 46 . . Terrain Rammed . | . . . . . Walls Destroyed . | . . . . . Machines Disabled . | . . . . . Actions | -11 -10 -9 -9 -8 --------- Run | Yrd Mat Mat Min Mat Total 1405 | 87 456 610 22 230 Wait 20 | 5 2 9 . 4 Move 1051 | 68 359 440 22 162 Hop . | . . . . . Pick Up 60 | 6 16 29 . 9 Fast Attach . | . . . . . Attach 42 | 5 3 23 . 11 Detach 5 | . . 3 . 2 Swap 30 | 2 13 10 . 5 Drop 23 | 1 8 9 . 5 Fire 161 | . 52 85 . 24 Melee . | . . . . . Ram 1 | . . . . 1 Kick 1 | . . 1 . . Crush 11 | . 3 1 . 7 Escape Stasis . | . . . . . Rewire . | . . . . . Trap . | . . . . . Miscellaneous . | . . . . . Route ------- -11/Scrapyard -10/Materials (discovered 4 exits: *Mat x2 / [*Min x2]) -9/Materials (discovered 3 exits: *Mat / [*Min x2]) -9/Mines -8/Materials History --------- Turn | Location | Event 8 | -11/Scrapyard | Discovered new exit (range 15) 115 | -11/Scrapyard | Entered Materials 309 | -10/Materials | Build established: Mutant 344 | -10/Materials | Discovered new exit (range 6) 386 | -10/Materials | Discovered new exit (range 16) 557 | -10/Materials | Discovered new exit (range 16) 806 | -10/Materials | Discovered new exit (range 16) 830 | -10/Materials | Core integrity fell below 50% 850 | -10/Materials | Entered another Materials area 850 | -9/Materials | Evolved 2 slots: Utility x2 1032 | -9/Materials | Lost 3 parts (1n1u1w) 1214 | -9/Materials | Lost 3 parts (1u2w) 1341 | -9/Materials | Discovered new exit (range 4) 1585 | -9/Materials | Discovered new exit (range 15) 1625 | -9/Materials | Core integrity fell below 50% 1655 | -9/Materials | Discovered new exit (range 14) 1728 | -9/Materials | Core integrity fell below 20% 1751 | -9/Materials | Destroyed 12 combat bots 1751 | -9/Materials | Lost 8 parts (2p3n3w) 1859 | -9/Materials | Entered Mines 1883 | -9/Mines | Discovered new exit (range 6) 1895 | -9/Mines | Entered Materials 1895 | -8/Materials | Evolved 2 slots: Propulsion x1, Utility x1 2213 | -8/Materials | Core integrity fell below 50% 2238 | -8/Materials | Core integrity fell below 20% 2256 | -8/Materials | Destroyed by H-61 Shepherd with Heavy Assault Cannon Last Messages --------------- Adv. Treads+ destroyed. Acquired Imp. Ion Engine. Beam Rifle destroyed. Knocked back. Acquired 5 matter. Acquired Hvy. Assault Rifle. Slammed into X-57 Shotgunner. Destabilizing: System corrupted (+2). X-57 Shotgunner destroyed. Acquired 23 matter. K-01 Serf collects debris. Penetrated by Slug. Knocked back. Acquired 5 matter. Critical hit (Burn: +37). K-01 Serf destroyed. K-01 Serf collects debris. Acquired 6 matter. K-01 Serf collects debris. System corrupted: Hvy. Assault Rifle rejected. Map ----- +----------------------------------------------------+ | ????????????????????????? # ! ### ! | | ???????????????????????????? #"S ############ | | ?????????????????????????!?? #""" ############ | | ???????????????????????????? # "" ##?????????? | | ??????????????????????????? + ##?????????? | | ????????????????????????? # """" ##?????????? | | ?????????????????????????### # """" ##?????????? | | ?????????????????????????### # """" ##?????????? | | ??????????????????????????## # ##?????????? | | ???????????????????????????? ########+##?????????? | | ??????????????????? # ???? ######## ##?????????? | | ??????????????????? # ???????????## ##?????????? | | ??????????????????? + ???????????## ##?????????? | | ??????????????????? # ???????????## ##?????????? | | ?????????????????? # ##?????????## ##?????????? | | ??????????????????### ##?????????## ##?########? | | ??????????????????## #?????????## ##?########? | | ??????????????????## ??????????## ##? #? | | ??????????????????## ?????????### ## """ ??? | | ??????????????????## ?????????### ## """ ## | | ??????????????????## #????????## # """ ## | | ???????????########## %%## ##% + """ ## | | ???????????##########[*!############ # """ ## | | ???????????## [] #%%|#%%%% #### # ## | | ???????????## ?[] +==!/k!H! #### # "T" ## | | ???????????????]??? # #@!gg #### # """ ## | | ???????????????????##%% #%###;+##### ########### | | ??????????????????? # ! ##### % #########?? | | ??????????????????? #!=="#### ##???? | | ??????????????????? #]%]##### #### ##???? | | ??????????????????? #*=!##### % ###+#######+####?? | | ??????????????????? # ##?## ## ##?? | | ??????????????????? # ##?## ## ###?? | | ??????????????????? # ##?## ## !! ! ##??? | | ???????????????????## ##?# # ! ##??? | | ??????????????????? ? # ! ##??? | | ???????????????????? ? # *##??? | | ?????????????????? # """T""" ##??? | | ??????????????????####+##### ##############??? | | ?????????????????? """ """ ## ### ######??? | | ?????????????????????? ??? ## ###??????????????? | | ???????????????????????????## ?????????????????? | | ???????????????????????????## ?????????????????? | | ?????????????????????????????????????????????????? | | ?????????????????????????????????????????????????? | | ?????????????????????????????????????????????????? | | ?????????????????????????????????????????????????? | | ?????????????????????????????????????????????????? | | ?????????????????????????????????????????????????? | | ?????????????????????????????????????????????????? | +----------------------------------------------------+ Best States ------------- Heat Dissipation 50 Energy Generation 14 Energy Capacity 265 Matter Stores 300 Matter Capacity 300 Sight Range 16 Terrain Scan Density 10 Armor Coverage 300 Core Shielding 20 Power Shielding 33 Evasion (%) 57 Targeting Accuracy 6 Recoil Reduction 7 Item Schematics ----------------- Adv. Treads | -8/Materials | Scanalyzed Robot Schematics ------------------ None Fabricated ------------ Nothing Repaired ---------- Nothing Studied --------- Deuterium Engine | -8/Materials | Hacked Adv. Treads | -8/Materials | Hacked Alien Tech Used ----------------- None Achievements -------------- Bumper Bots Close Call Heavy Suspicion I Have A Map? Item+ Power Corrupts Resistances Are Futile Sprinter Challenges ------------ None Game ------ Seed HoverBombGriptreads Manual? 0 Play Time 00:47:52 Cumulative 4.8 hours Start 2026.02.17 @ 02:30:44 End 2026.02.17 @ 03:34:58 Sessions 1 Manual Loads 0 Difficulty Rogue Special Mode None Game No. 11 Rogue 7 Adventurer 0 Explorer 4 Win Type - Total 0 Types 0/0/0/0/0/0/0/0/0/0 Lore% 3 Gallery% 11 Achievement% 10 Wizard Run 0 Options --------- Layout 1 ASCII 0 Keyboard 0 Movement Mouse Keybinds 0 Fullscreen 1 Font 24/Smallcaps Map View 50x35 Zoom Use 0% Tactical HUD 0 Map Filters NONE Filters NONE Steam 1 RUN: 5ce91286-1651-430e-b411-71831f6dac76